bitfinex-derivatives/quotes_ETHF0:USTF0_20250531
["timestamp","ask_amount","ask_price","bid_price","bid_amount"]
[1748708353012,23.1309,2544.0,2543.9,0.78581]
[1748708353306,23.91668,2544.0,2543.9,0.78581]
[1748708353516,23.1309,2544.0,2543.9,0.78581]
[1748708354020,23.1309,2544.0,2543.8,0.78583]
[1748708354213,25.09543,2544.0,2543.4,5.55596128]
[1748708354411,1.2442,2543.9,2543.4,5.55596128]
[1748708354814,2.03003,2543.9,2543.7,0.78586]
[1748708355014,1.2442,2543.9,2543.8,0.78584]
[1748708355217,23.0802,2543.9,2543.8,0.78584]
[1748708355920,23.86601,2543.9,2543.8,0.78584]
[1748708356118,23.86601,2543.9,2543.7,0.78585]
[1748708356310,23.0802,2543.9,2543.8,0.78584]
[1748708356922,23.86601,2543.9,2543.8,0.78584]
[1748708357217,1.2939,2544.0,2543.9,0.78581]
[1748708357420,23.91268,2544.0,2543.8,0.78582]
[1748708357615,23.91268,2544.0,2543.7,0.78587]
[1748708357922,0.78581,2543.9,2543.7,0.78587]
[1748708358120,21.833,2543.8,2543.7,0.78587]
[1748708359422,1.2939,2544.0,2543.6,1.2899]
[1748708359719,22.61881,2543.9,2543.8,0.78583]
[1748708359921,21.833,2543.9,2543.7,0.78586]
[1748708360222,21.833,2543.9,2543.8,2.04094]
[1748708360421,21.832,2543.9,2543.8,2.04094]
[1748708360624,0.78581,2543.9,2543.8,1.2551]
[1748708360923,22.61781,2543.9,2543.8,1.2551]
[1748708361225,0.78589,2543.7,2543.5,0.6667]
[1748708361427,21.832,2543.9,2543.7,0.78585]
[1748708361622,4.62483,2543.9,2543.5,1.9936]
[1748708361825,22.61783,2543.9,2543.8,0.78584]
[1748708362022,3.839,2544.0,2543.9,0.78581]
[1748708362329,3.839,2544.0,2543.9,2.77461]
[1748708362626,3.839,2544.1,2544.0,0.78578]
[1748708362821,3.839,2544.1,2544.0,2.11268]
[1748708363319,3.839,2544.1,2544.0,2.11266]
[1748708364819,4.62475,2544.1,2544.0,1.3269]
[1748708365028,0.78578,2544.0,2543.9,0.6407]
[1748708365227,1.44858,2544.0,2543.9,1.42651]
[1748708365431,1.44858,2544.0,2543.9,1.9444]
[1748708365739,0.78584,2543.8,2543.7,2.34816128]
[1748708366423,0.78584,2543.8,2543.7,3.13403128]
[1748708366622,0.78584,2543.8,2543.7,2.34816128]
[1748708367131,1.314,2543.9,2543.7,3.13403128]
[1748708367332,0.78584,2543.8,2543.7,3.13403128]
[1748708367631,2.09982,2543.9,2543.7,3.13403128]
[1748708367833,2.09982,2543.9,2543.7,0.78587]
[1748708368334,1.314,2543.9,2543.7,0.78587]
[1748708368532,1.314,2543.9,2543.5,7.48956128]
[1748708368533,1.314,2543.9,2543.8,0.78584]
[1748708368833,1.314,2543.9,2543.5,7.48956128]
[1748708369132,2.09982,2543.9,2543.8,0.78584]
[1748708369324,20.09082,2543.9,2543.7,0.78585]
[1748708369522,19.305,2543.9,2543.7,0.78585]
[1748708369725,20.09082,2543.9,2543.7,0.78585]
[1748708370033,20.09083,2543.9,2543.7,0.78586]
[1748708370333,0.78584,2543.8,2543.7,0.78586]
[1748708371330,2.09297,2543.8,2543.7,0.78587]
[1748708371536,17.99,2543.9,2543.8,0.78582]
[1748708371924,22.61382,2543.9,2543.7,0.6713]
[1748708372231,3.2078,2544.1,2544.0,0.78578]
[1748708372429,3.838,2544.1,2544.0,0.78578]
[1748708372628,4.62375,2544.1,2544.0,0.78578]
[1748708373435,0.78579,2544.0,2543.9,0.78579]
[1748708373838,4.62376,2544.1,2544.0,0.78578]
[1748708374037,5.91676,2544.1,2544.0,0.78578]
[1748708374232,23.90676,2544.1,2544.0,0.78578]
[1748708375335,3.838,2544.1,2543.9,2.34816128]
[1748708375538,3.838,2544.1,2544.0,2.72438]
[1748708376341,2.07583,2544.2,2544.1,0.78575]
[1748708376534,5.91383,2544.2,2544.1,0.78575]
[1748708377138,0.78575,2544.1,2544.0,2.72436]
[1748708377634,5.91384,2544.2,2544.1,0.78575]
[1748708377840,18.77471,2544.3,2544.2,0.78569]
[1748708378042,22.61271,2544.3,2544.2,0.78569]
[1748708379643,0.78572,2544.2,2544.1,0.78573]
[1748708380442,23.1396,2544.3,2544.2,0.78572]
[1748708381442,23.92529,2544.3,2544.2,0.78572]
[1748708381833,1.40358,2544.4,2544.3,0.78569]
[1748708382040,23.22958,2544.4,2544.3,0.78569]
[1748708382849,0.78569,2544.3,2544.2,1.4662]
[1748708383445,22.4439,2544.4,2544.2,0.6805]
[1748708383644,0.78569,2544.3,2544.2,1.46621]
[1748708384444,0.78569,2544.3,2544.2,0.78571]
[1748708384643,2.05019,2544.3,2544.2,0.78571]
[1748708385042,23.22958,2544.4,2544.3,0.78569]
[1748708385543,0.78569,2544.3,2544.2,2.7267]
[1748708385933,3.2078,2544.5,2544.2,1.941]
[1748708386138,3.838,2544.8,2544.7,0.78556]
[1748708386344,4.5035,2544.8,2544.5,4.52470528]
[1748708386642,5.28906,2544.8,2544.6,1.311]
[1748708386844,0.78556,2544.7,2544.6,1.311]
[1748708387048,0.7856,2544.6,2544.5,3.88500528]
[1748708387349,0.7856,2544.6,2544.5,4.67063528]
[1748708387643,0.7856,2544.6,2544.5,6.2373987]
[1748708388948,0.7856,2544.6,2544.5,7.0230287]
[1748708389241,18.7726,2544.6,2544.5,4.67063528]
[1748708389445,17.987,2544.6,2544.5,4.67063528]
[1748708390146,18.7726,2544.6,2544.5,5.94713528]
[1748708390642,18.7726,2544.6,2544.5,5.16150528]
[1748708391745,18.7726,2544.6,2544.5,5.94713528]
[1748708392245,18.7726,2544.6,2544.5,1.95370528]
[1748708393139,18.7726,2544.6,2544.5,0.00590528]
[1748708395740,0.7856,2544.6,2544.5,0.00590528]
[1748708395936,22.6066,2544.6,2544.5,0.00590528]
[1748708401054,22.82938199,2544.6,2544.5,0.00590528]
[1748708401455,22.6056,2544.6,2544.5,0.00590528]
[1748708401944,22.82837483,2544.6,2544.5,0.00590528]
[1748708402142,22.6056,2544.6,2544.5,0.00590528]
[1748708402552,22.82863178,2544.6,2544.5,0.00590528]
[1748708402749,22.82863176,2544.6,2544.5,0.00590528]
[1748708403552,22.828667,2544.6,2544.5,0.00590528]
[1748708403750,22.82866703,2544.6,2544.5,0.00590528]
[1748708403955,22.8286671,2544.6,2544.5,0.00590528]
[1748708404148,22.6056,2544.6,2544.5,0.00590528]
[1748708404554,22.82869415,2544.6,2544.5,0.00590528]
[1748708404752,22.82869497,2544.6,2544.5,0.00590528]
[1748708405148,22.6056,2544.6,2544.5,0.00590528]
[1748708405450,22.8287518,2544.6,2544.5,0.00590528]
[1748708405651,22.82876338,2544.6,2544.5,0.00590528]
[1748708405848,22.82876278,2544.6,2544.5,0.00590528]
[1748708406045,22.82876171,2544.6,2544.5,0.00590528]
[1748708406248,22.6056,2544.6,2544.5,0.00590528]
[1748708406451,22.82876123,2544.6,2544.5,0.00590528]
[1748708406857,22.8287581,2544.6,2544.5,0.00590528]
[1748708407057,22.82877253,2544.6,2544.5,0.00590528]
[1748708407253,22.6056,2544.6,2544.5,0.00590528]
[1748708407758,23.5557592,2544.6,2544.5,0.00590528]
[1748708410459,30.0847592,2544.6,2544.5,0.00590528]
[1748708410662,23.5557592,2544.6,2544.5,0.00590528]
[1748708411051,23.77906123,2544.6,2544.5,0.00590528]
[1748708411254,28.5557592,2544.6,2544.5,0.00590528]
[1748708412360,23.5557592,2544.6,2544.5,0.00590528]
[1748708412554,23.77909925,2544.6,2544.5,0.00590528]
[1748708412857,23.5557592,2544.6,2544.5,0.00590528]
[1748708414361,1.7357592,2544.6,2544.5,0.00590528]
[1748708414564,23.77912501,2544.6,2544.5,0.00590528]
[1748708414762,23.5557592,2544.6,2544.5,0.00590528]
[1748708416359,28.5557592,2544.6,2544.5,0.00590528]
[1748708417462,23.77914097,2544.6,2544.5,0.00590528]
[1748708417662,23.5557592,2544.6,2544.5,0.00590528]
[1748708417967,23.77914139,2544.6,2544.5,0.00590528]
[1748708418167,23.5557592,2544.6,2544.5,0.00590528]
[1748708419763,23.77912954,2544.6,2544.5,0.00590528]
[1748708419969,23.5557592,2544.6,2544.5,0.00590528]
[1748708421665,23.77935252,2544.6,2544.5,0.00590528]
[1748708421867,23.5557592,2544.6,2544.5,0.00590528]
[1748708423572,23.77956718,2544.6,2544.5,0.00590528]
[1748708423779,0.78572,2544.2,2544.1,0.6736]
[1748708423972,7.82852,2544.2,2544.1,0.6736]
[1748708426171,22.82804644,2544.2,2544.1,0.6736]
[1748708426373,22.82804644,2544.2,2544.1,1.9568]
[1748708426374,23.77820376,2544.2,2544.1,1.9568]
[1748708426561,23.77820544,2544.2,2544.1,1.9568]
[1748708426761,23.77820577,2544.2,2544.1,1.9568]
[1748708426967,23.77820597,2544.2,2544.1,1.9568]
[1748708428275,23.7780575,2544.2,2544.1,1.9568]
[1748708428473,23.77813757,2544.2,2544.1,1.9568]
[1748708428773,23.5548792,2544.2,2544.1,1.9568]
[1748708429175,23.77812756,2544.2,2544.1,1.9568]
[1748708429673,23.5548792,2544.2,2544.1,1.9568]
[1748708429875,23.77813778,2544.2,2544.1,1.9568]
[1748708430073,23.5548792,2544.2,2544.1,1.9568]
[1748708430969,23.77815141,2544.2,2544.1,1.9568]
[1748708431876,23.77819012,2544.2,2544.1,1.9568]
[1748708432076,23.5548792,2544.2,2544.1,1.9568]
[1748708432369,23.77857101,2544.2,2544.1,1.9568]
[1748708432575,23.5548792,2544.2,2544.1,1.9568]
[1748708433476,23.7785983,2544.2,2544.1,1.9568]
[1748708433876,23.5548792,2544.2,2544.1,1.9568]
[1748708434072,23.77864969,2544.2,2544.1,1.9568]
[1748708434266,23.5548792,2544.2,2544.1,1.9568]
[1748708434475,1.7358792,2544.2,2544.1,1.9568]
[1748708434671,23.5548792,2544.2,2544.1,1.9568]
[1748708435075,1.7358792,2544.2,2544.1,1.9568]
[1748708435272,22.7691592,2544.2,2544.1,1.9568]
[1748708435471,4.7851592,2544.2,2544.1,2.74255]
[1748708435667,23.5548792,2544.2,2544.1,1.9568]
[1748708435873,3.835,2544.2,2544.1,2.74255]
[1748708436072,22.60472,2544.2,2544.1,1.9568]
[1748708436575,0.00590528,2544.4,2544.1,1.9568]
[1748708436778,21.819,2544.3,2544.2,2.73229]
[1748708437079,21.819,2544.3,2544.2,1.42389]
[1748708437275,0.00590528,2544.4,2544.3,0.78569]
[1748708437479,21.82490528,2544.4,2544.3,0.78569]
[1748708437778,0.00590528,2544.4,2544.3,5.78569]
[1748708438272,0.00590528,2544.4,2544.3,8.13808342]
[1748708439371,0.79156528,2544.4,2544.3,2.35239342]
[1748708440582,0.78569,2544.3,2544.2,6.19839342]
[1748708441076,0.78569,2544.3,2544.2,2.99059342]
[1748708441574,0.79059,2544.3,2544.2,2.99059342]
[1748708442374,0.78569,2544.3,2544.2,2.99059342]
[1748708442771,0.78569,2544.3,2544.2,2.35239342]
[1748708443479,0.78572,2544.2,2544.1,3.02599342]
[1748708443683,4.62072,2544.2,2544.1,3.02599342]
[1748708444176,22.60172,2544.2,2544.1,3.02599342]
[1748708444370,21.816,2544.2,2544.1,3.02599342]
[1748708445682,22.60172,2544.2,2544.1,0.6736]
[1748708446580,23.26822,2544.2,2544.1,0.6736]
[1748708447584,0.78578,2544.0,2543.9,5.5660987]
[1748708449081,0.78577,2544.1,2543.9,6.3519087]
[1748708449384,0.78577,2544.1,2543.9,6.3518887]
[1748708449885,0.78578,2544.0,2543.9,5.5660987]
[1748708450679,0.78578,2544.0,2543.9,2.3582987]
[1748708451077,0.78578,2544.0,2543.9,0.00590528]
[1748708452184,18.76678,2544.0,2543.9,1.24220528]
[1748708452780,17.981,2544.0,2543.9,2.02801528]
[1748708453187,18.76678,2544.0,2543.9,2.02801528]
[1748708453382,18.76678,2544.0,2543.9,1.24220528]
[1748708453684,18.76678,2544.0,2543.9,2.02801528]
[1748708454184,18.76678,2544.0,2543.9,4.3804087]
[1748708454385,18.76678,2544.0,2543.9,3.5945987]
[1748708454582,18.76678,2544.0,2543.9,4.3804087]
[1748708454780,1.44618,2544.1,2543.9,4.3804087]
[1748708454981,17.981,2544.0,2543.9,4.3804087]
[1748708457686,18.76678,2544.0,2543.9,4.3804087]
[1748708458987,17.981,2544.0,2543.9,4.3804087]
[1748708459286,18.76678,2544.0,2543.9,4.3804087]
[1748708459588,17.981,2544.0,2543.9,4.3804087]
[1748708460989,0.78578,2544.0,2543.9,4.3804087]
[1748708461187,22.59978,2544.0,2543.9,4.3804087]
[1748708461486,22.59978,2544.0,2543.9,2.3582987]
[1748708461678,23.88828,2544.0,2543.9,2.3582987]
[1748708461880,2.07428,2544.0,2543.9,2.3582987]
[1748708462195,23.88728,2544.0,2543.9,2.3582987]
[1748708462385,1.2885,2544.0,2543.9,3.1441087]
[1748708462580,23.1015,2544.0,2543.9,2.3582987]
[1748708462886,23.88728,2544.0,2543.9,2.3582987]
[1748708463792,23.88728,2544.0,2543.9,0.00590528]
[1748708463993,24.11086564,2544.0,2543.9,0.00590528]
[1748708464288,29.11073751,2544.0,2543.9,0.00590528]
[1748708464494,29.11072766,2544.0,2543.9,0.00590528]
[1748708464693,29.11072453,2544.0,2543.9,0.00590528]
[1748708464897,28.88728,2544.0,2543.9,0.00590528]
[1748708465089,29.11071492,2544.0,2543.9,0.00590528]
[1748708465794,0.78597,2543.4,2543.2,2.35239342]
[1748708465987,1.96454,2543.9,2543.2,2.35239342]
[1748708465988,23.2327,2543.3,2543.2,2.35239342]
[1748708466488,22.4467,2543.3,2543.2,2.35239342]
[1748708467593,17.981,2543.3,2543.2,4.49432342]
[1748708467799,5.25165,2543.5,2543.3,0.786]
[1748708467994,5.25165,2543.5,2543.4,0.6488]
[1748708468196,23.23365,2543.5,2543.4,0.6488]
[1748708469693,0.78598,2543.4,2543.2,0.78602]
[1748708469899,0.786,2543.3,2543.1,3.80614342]
[1748708470088,0.786,2543.3,2543.2,1.3559]
[1748708470292,0.78599,2543.4,2543.2,2.14193]
[1748708470494,0.78599,2543.4,2543.3,1.3308]
[1748708472501,22.4477,2543.5,2543.3,1.3308]
[1748708472702,17.983,2543.4,2543.3,2.11678]
[1748708473003,4.61985,2543.8,2543.4,0.6428]
[1748708473299,18.76887,2543.7,2543.6,3.9937]
[1748708473498,17.983,2543.7,2543.6,5.3614]
[1748708473801,0.78584,2543.9,2543.8,0.78584]
[1748708474000,18.76884,2543.9,2543.8,0.78584]
[1748708474393,18.76884,2543.9,2543.8,1.42864]
[1748708474792,18.76884,2543.9,2543.8,0.6428]
[1748708475202,18.76884,2543.9,2543.8,2.0105]
[1748708475808,0.78584,2543.9,2543.8,2.79634]
[1748708475995,0.78584,2543.9,2543.8,2.0105]
[1748708476405,0.00590528,2544.4,2544.3,0.78569]
[1748708476604,0.79159528,2544.4,2544.1,3.99352]
[1748708476809,0.79159528,2544.4,2544.2,2.02282]
[1748708476810,0.79157528,2544.4,2544.2,2.02282]
[1748708477108,0.79157528,2544.4,2544.3,1.2371]
[1748708477308,0.78569,2544.3,2544.2,0.678]
[1748708477508,1.44129,2544.3,2544.2,0.678]
[1748708477906,0.78572,2544.2,2544.1,4.4449]
[1748708478813,0.78572,2544.2,2544.1,6.79729342]
[1748708479103,1.3061,2544.3,2544.1,6.79729342]
[1748708479310,0.78572,2544.2,2544.1,2.35239342]
[1748708479702,2.02232,2544.2,2544.1,2.35239342]
[1748708480313,2.02232,2544.2,2543.9,0.78581]
[1748708480611,2.02232,2544.2,2543.9,1.3625]
[1748708480813,2.02232,2544.2,2543.9,2.14831]
[1748708481916,2.02234,2544.2,2543.9,1.3625]
[1748708482108,0.78575,2544.1,2543.9,1.3625]
[1748708482308,2.02234,2544.2,2543.9,1.3625]
[1748708482514,0.78575,2544.1,2543.9,1.3625]
[1748708483914,0.78578,2544.0,2543.9,1.3625]
[1748708485313,18.76878,2544.0,2543.9,1.3625]
[1748708485514,17.983,2544.0,2543.9,1.3625]
[1748708485906,18.76878,2544.0,2543.9,1.3625]
[1748708486512,18.76678,2544.0,2543.9,1.3625]
[1748708490213,0.78584,2543.8,2543.7,2.97439342]
[1748708490411,0.78584,2543.8,2543.7,4.24379342]
[1748708490913,0.78584,2543.8,2543.7,2.35239342]
[1748708491606,2.70774,2543.8,2543.7,2.35239342]
[1748708493210,0.78594,2543.5,2543.3,8.24138342]
[1748708493413,0.78594,2543.5,2543.4,1.323]
[1748708495216,3.836,2543.6,2543.4,1.323]
[1748708495419,4.62193,2543.6,2543.4,2.10895]
[1748708495615,0.78594,2543.5,2543.4,2.10897]
[1748708496117,0.78594,2543.5,2543.4,1.323]
[1748708499113,0.78594,2543.5,2543.4,2.10897]
[1748708499316,0.78594,2543.5,2543.4,1.323]
[1748708500010,0.78594,2543.5,2543.4,2.10897]
[1748708500309,0.78594,2543.5,2543.4,1.323]
[1748708500509,0.78594,2543.5,2543.4,3.67539342]
[1748708501216,0.78594,2543.5,2543.4,4.46136342]
[1748708501415,0.78594,2543.5,2543.4,3.67539342]
[1748708501722,17.982,2543.5,2543.4,3.67539342]
[1748708502110,0.6251,2543.8,2543.4,3.67539342]
[1748708502418,0.7859,2543.6,2543.5,1.3034]
[1748708503516,0.7859,2543.6,2543.5,2.08934]
[1748708503818,0.7859,2543.6,2543.4,2.35239342]
[1748708503819,0.78594,2543.5,2543.4,2.35239342]
[1748708504117,24.61174,2543.5,2543.4,2.35239342]
[1748708505821,0.786,2543.3,2543.2,1.56772407]
[1748708506021,0.78599,2543.4,2543.2,1.56772407]
[1748708506207,0.78597,2543.4,2543.2,3.63825407]
[1748708506415,23.25015,2543.5,2543.3,1.2845]
[1748708506618,23.25014,2543.5,2543.3,1.2845]
[1748708506923,23.25014,2543.5,2543.4,0.653]
[1748708508417,3.836,2543.5,2543.4,0.653]
[1748708508620,21.819,2543.5,2543.4,0.653]
[1748708508818,3.2078,2543.9,2543.4,5.653]
[1748708509027,3.99362,2543.9,2543.6,0.78589]
[1748708509321,0.78584,2543.8,2543.7,1.3148]
[1748708511917,17.983,2543.9,2543.7,1.3148]
[1748708512123,18.76881,2543.9,2543.8,0.6832]
[1748708513527,18.76881,2543.9,2543.8,2.25074543]
[1748708513826,0.78581,2543.9,2543.8,2.25074543]
[1748708514028,0.78581,2543.9,2543.8,3.52984543]
[1748708514430,17.982,2544.0,2543.8,4.31567543]
[1748708514724,22.59977,2544.1,2543.9,1.2791]
[1748708515124,22.59977,2544.1,2543.9,2.06491]
[1748708515316,0.78578,2544.0,2543.9,1.2791]
[1748708515518,21.814,2544.1,2543.8,2.35239342]
[1748708515722,0.78581,2543.9,2543.8,2.35239342]
[1748708516822,0.78581,2543.9,2543.8,3.60159342]
[1748708517928,20.0441,2544.0,2543.8,3.60159342]
[1748708518228,20.0441,2544.0,2543.8,4.38743342]
[1748708518530,0.78581,2543.9,2543.8,3.60159342]
[1748708519228,20.0441,2544.0,2543.8,4.38743342]
[1748708519931,20.0441,2544.0,2543.9,1.56791568]
[1748708521435,17.982,2544.0,2543.9,2.35372568]
[1748708521732,3.832,2544.1,2543.9,3.59530568]
[1748708521919,4.61777,2544.1,2544.0,1.3362]
[1748708522116,21.1888,2544.2,2544.1,0.78575]
[1748708522321,0.78571,2544.3,2544.1,0.78575]
[1748708522519,5.95477528,2544.4,2544.2,2.12192]
[1748708522727,17.981,2544.3,2544.2,2.12192]
[1748708523221,17.98,2544.3,2544.2,2.12192]
[1748708523633,0.00590528,2544.4,2544.3,0.78569]
[1748708523830,0.79157528,2544.4,2544.3,1.3362]
[1748708524926,0.00590528,2544.4,2544.2,1.56791568]
[1748708525234,1.40799,2544.3,2544.2,1.56791568]
[1748708525628,2.72229,2544.3,2544.2,1.56791568]
[1748708525829,20.74029,2544.3,2544.2,1.56791568]
[1748708526333,0.78572,2544.2,2544.1,1.56791568]
[1748708526638,2.10002,2544.2,2544.1,1.56791568]
[1748708527731,1.3143,2544.2,2543.9,7.52391568]
[1748708527922,0.78578,2544.0,2543.9,8.30972568]
[1748708528128,1.3143,2544.2,2543.9,7.52391568]
[1748708528433,1.3143,2544.2,2543.9,8.88411568]
[1748708528628,0.78578,2544.0,2543.9,8.88411568]
[1748708530631,1.42618,2544.0,2543.9,8.88411568]
[1748708530832,1.42618,2544.0,2543.9,2.92811568]
[1748708535543,19.42418,2544.0,2543.9,2.92811568]
[1748708537447,19.42418,2544.0,2543.9,3.71259342]
[1748708541241,19.42418,2544.0,2543.9,4.49840342]
[1748708541439,0.68630528,2544.4,2543.9,3.71259342]
[1748708541641,0.78575,2544.1,2544.0,2.05687]
[1748708541841,0.6186,2544.3,2544.2,0.78572]
[1748708542037,17.99,2544.3,2544.2,0.7857]
[1748708542237,18.77569,2544.3,2544.2,0.7857]
[1748708542439,0.00590528,2544.4,2544.3,0.78569]
[1748708542640,0.00590528,2544.4,2544.3,2.05679]
[1748708542841,2.34241207,2544.9,2544.8,0.78553]
[1748708543136,3.14610994,2545.1,2545.0,0.78547]
[1748708543335,3.14610994,2545.1,2545.0,3.99327]
[1748708543944,0.00590528,2545.3,2545.2,0.78541]
[1748708544141,0.78541,2545.2,2545.1,1.2355]
[1748708544340,0.78541,2545.2,2545.1,4.4433]
[1748708545038,0.78541,2545.2,2545.1,5.22874]
[1748708545240,0.79130528,2545.3,2545.1,5.22872]
[1748708545443,0.79130528,2545.3,2545.2,1.2355]
[1748708545639,0.79130528,2545.3,2545.2,1.8711]
[1748708546652,0.00590528,2545.3,2545.2,2.65651]
[1748708547246,0.79128528,2545.3,2545.2,1.8711]
[1748708547547,0.00590528,2545.3,2545.2,2.65651]
[1748708548250,0.79128528,2545.3,2545.2,1.8711]
[1748708548744,0.79128528,2545.3,2545.2,2.65651]
[1748708548950,0.00590528,2545.3,2545.2,2.65651]
[1748708551949,3.2078,2545.7,2545.2,6.8711]
[1748708552151,3.2078,2545.7,2545.4,0.78534]
[1748708552352,0.78529,2545.6,2545.5,1.3256]
[1748708552646,0.78537,2545.4,2545.2,6.5916]
[1748708552853,21.2378,2545.7,2545.3,1.3256]
[1748708553147,0.78535,2545.4,2545.3,1.3256]
[1748708553549,0.78535,2545.4,2545.3,2.11098]
[1748708554147,0.78535,2545.4,2545.3,3.67503643]
[1748708554744,0.78534,2545.5,2545.3,3.67503643]
[1748708554949,0.78534,2545.5,2545.4,0.78535]
[1748708556952,0.78535,2545.4,2545.3,2.11096]
[1748708557752,0.78538,2545.3,2545.2,1.42099]
[1748708558050,0.78537,2545.4,2545.3,0.78538]
[1748708558249,0.6263,2545.6,2545.2,1.937]
[1748708558449,19.9639,2545.6,2545.3,2.07616]
[1748708558644,0.78535,2545.4,2545.3,1.2908]
[1748708558843,0.78538,2545.3,2545.2,0.6356]
[1748708559652,0.78538,2545.3,2545.2,1.42101]
[1748708560149,21.92714,2545.6,2545.1,10.72785643]
[1748708560150,0.78541,2545.2,2545.1,9.94923]
[1748708560346,1.9633,2545.5,2545.1,9.1638]
[1748708560647,0.78541,2545.2,2545.1,9.1638]
[1748708561445,0.78544,2545.1,2545.0,1.56405643]
[1748708561647,0.6187,2545.1,2545.0,0.78547]
[1748708561845,0.78539,2545.3,2545.1,0.78543]
[1748708562047,1.40409,2545.3,2545.1,0.78543]
[1748708562756,1.40409,2545.3,2545.0,1.3621]
[1748708563250,18.025,2545.2,2545.0,1.3621]
[1748708563553,18.025,2545.2,2545.1,0.78544]
[1748708563954,18.81041,2545.2,2545.1,0.78544]
[1748708565255,0.78544,2545.1,2545.0,2.14755]
[1748708566057,0.78544,2545.1,2545.0,1.3621]
[1748708566756,0.78544,2545.1,2545.0,2.14757]
[1748708568069,18.81043,2545.2,2545.0,2.14757]
[1748708568560,18.81043,2545.2,2545.0,3.71162643]
[1748708569059,18.81043,2545.2,2545.1,0.78544]
[1748708570261,18.81043,2545.2,2545.1,2.34949643]
[1748708571165,18.81043,2545.2,2545.1,1.56405643]
[1748708571352,0.78544,2545.1,2545.0,3.13153465]
[1748708572355,19.9502,2545.2,2545.0,2.34608465]
[1748708572561,20.73563,2545.2,2545.1,0.78544]
[1748708575364,19.43323,2545.2,2545.1,0.78544]
[1748708575664,19.40223,2545.2,2545.1,0.78544]
[1748708575863,18.6168,2545.2,2545.1,0.78544]
[1748708576170,5.2541,2545.3,2545.2,0.78541]
[1748708576363,22.4607,2545.3,2545.2,0.78541]
[1748708576673,23.24508,2545.3,2545.2,0.78541]
[1748708576858,23.24508,2545.3,2545.2,3.13855069]
[1748708577062,22.4597,2545.3,2545.2,3.13855069]
[1748708577263,23.24508,2545.3,2545.2,3.76065069]
[1748708577560,22.4597,2545.3,2545.2,3.76065069]
[1748708578465,4.4687,2545.3,2545.2,3.76065069]
[1748708578671,22.4557,2545.3,2545.2,3.76065069]
[1748708579568,4.4687,2545.3,2545.2,6.96845069]
[1748708580469,4.0459,2545.3,2545.2,6.96845069]
[1748708580773,0.1959,2545.3,2545.2,4.61531]
[1748708581173,0.1959,2545.3,2545.2,5.89101]
[1748708581766,0.6295,2545.8,2545.7,0.78526]
[1748708581962,3.99302,2545.9,2545.7,0.78526]
[1748708582270,21.98402,2545.9,2545.8,0.78523]
[1748708582666,4.4763,2546.1,2545.6,2.6233]
[1748708582667,0.78516,2546.0,2545.9,0.78519]
[1748708583069,0.78521,2545.9,2545.8,0.7852]
[1748708583578,18.78219,2546.0,2545.8,0.7852]
[1748708583875,20.13059,2546.0,2545.9,0.78519]
[1748708584067,20.13059,2546.0,2545.8,0.7852]
[1748708584268,20.13059,2546.0,2545.9,0.78519]
[1748708584569,19.3454,2546.0,2545.7,3.69992567]
[1748708584870,0.78523,2545.8,2545.7,2.34982567]
[1748708585077,0.78526,2545.7,2545.6,3.91628217]
[1748708585268,2.13366,2545.7,2545.6,3.91628217]
[1748708585579,1.3484,2545.7,2545.6,3.91628217]
[1748708585970,2.13366,2545.7,2545.6,3.13099217]
[1748708586177,11.63156,2545.7,2545.6,0.67368465]
[1748708586772,11.85401306,2545.7,2545.6,0.67368465]
[1748708587177,11.85398728,2545.7,2545.6,0.67368465]
[1748708587375,0.78534,2545.5,2545.3,2.35141275]
[1748708587677,18.018,2545.4,2545.3,2.35141275]
[1748708588273,18.018,2545.4,2545.3,3.69131275]
[1748708588474,3.843,2545.5,2545.4,0.78535]
[1748708588777,3.843,2545.5,2545.4,2.13645]
[1748708588981,18.6759,2545.7,2545.6,0.78529]
[1748708589376,0.6549,2545.7,2545.6,0.78529]
[1748708589574,0.6549,2545.7,2545.6,1.46009]
[1748708589775,1.44016,2545.7,2545.5,2.1364]
[1748708589977,1.44016,2545.7,2545.5,1.3511]
[1748708590382,1.44016,2545.7,2545.5,2.13642]
[1748708590683,1.44016,2545.7,2545.6,1.3511]
[1748708592795,0.78529,2545.6,2545.5,2.34904913]
[1748708593991,0.6549,2545.7,2545.5,2.34904913]
[1748708594195,22.4882,2546.1,2545.8,0.78519]
[1748708594395,0.6332,2546.1,2546.0,0.78516]
[1748708594894,0.6332,2546.1,2546.0,2.75546]
[1748708595497,0.6332,2546.1,2546.0,2.74738389]
[1748708597799,1.9138,2546.3,2546.2,0.7851]
[1748708597985,1.9138,2546.3,2546.1,2.07612]
[1748708598190,1.9138,2546.3,2546.2,0.7851]
[1748708598393,1.42946,2546.4,2546.2,0.7851]
[1748708598690,0.6444,2546.4,2546.3,0.78507]
[1748708600001,0.6444,2546.4,2546.3,2.07607]
[1748708602499,3.2078,2546.5,2546.4,0.78504]
[1748708602798,3.2078,2546.8,2546.7,0.78495]
[1748708602993,21.2108,2546.8,2546.7,0.78495]
[1748708603194,21.8937,2546.8,2546.7,0.78495]
[1748708603400,22.67863,2546.8,2546.5,1.8622]
[1748708603597,22.67863,2546.8,2546.7,0.78495]
[1748708603895,0.78495,2546.7,2546.6,0.78497]
[1748708604108,0.78495,2546.7,2546.6,2.04307]
[1748708604400,3.842,2546.9,2546.6,2.04307]
[1748708604401,3.2078,2547.4,2546.6,4.4659]
[1748708604604,0.6503,2547.0,2546.9,0.78489]
[1748708607003,0.6503,2547.0,2546.9,2.34273472]
[1748708607203,19.9748,2547.2,2547.1,0.78483]
[1748708607901,1.9448,2547.2,2547.1,0.78483]
[1748708610401,0.6829,2547.2,2547.1,0.78483]
[1748708611504,0.6829,2547.2,2547.1,1.95173077]
[1748708611710,2.0075,2547.2,2547.1,1.95173077]